bitfinex/quotes_ETHUSD_20251028
["timestamp","ask_amount","ask_price","bid_price","bid_amount"]
[1761652936021,2.43214754,4111.6,4111.3,0.1216]
[1761652936199,0.00100001,4111.8,4111.3,0.1216]
[1761652936200,2.43220545,4111.5,4111.3,0.1216]
[1761652936882,2.43220545,4111.5,4111.3,0.1236]
[1761652937286,2.43214716,4111.6,4111.3,0.1236]
[1761652937733,2.53112574,4111.8,4111.3,0.1236]
[1761652937734,5.11243743,4111.7,4111.3,0.1236]
[1761652937888,2.43224658,4111.5,4111.3,0.1236]
[1761652938609,5.11243743,4111.7,4111.3,0.1236]
[1761652938783,2.4321432,4111.6,4111.3,0.1236]
[1761652938982,2.43220235,4111.5,4111.3,0.1236]
[1761652940434,5.21053743,4111.7,4111.3,0.1236]
[1761652940644,0.00100001,4111.8,4111.3,0.1236]
[1761652940793,0.00100001,4111.8,4111.7,0.1216]
[1761652940995,0.00100001,4111.8,4111.7,0.5577]
[1761652941410,0.00100001,4111.8,4111.7,2.98978405]
[1761652941932,0.00100001,4111.8,4111.7,0.5577]
[1761652943001,0.00100001,4111.8,4111.7,0.1216]
[1761652943369,0.00100001,4111.8,4111.7,3.9016]
[1761652944533,2.53252491,4111.8,4111.7,3.78]
[1761652945002,2.43225867,4111.5,4111.3,0.002]
[1761652945197,0.0995,4111.7,4111.3,0.002]
[1761652945402,0.0995,4111.6,4111.3,0.002]
[1761652945635,2.53164398,4111.6,4111.3,0.002]
[1761652946008,2.43220235,4111.5,4111.3,0.002]
[1761652947008,2.4321432,4111.6,4111.3,0.002]
[1761652947232,2.43224029,4111.5,4111.3,0.002]
[1761652947420,2.4321432,4111.6,4111.3,0.002]
[1761652947617,2.43220235,4111.5,4111.3,0.002]
[1761652947861,3.98746151,4111.4,4111.3,0.002]
[1761652948032,4.08696151,4111.4,4111.3,0.002]
[1761652953863,3.98746151,4111.4,4111.3,0.002]
[1761652954358,3.98666151,4111.4,4111.3,0.002]
[1761652954531,4.10826151,4111.4,4111.3,0.002]
[1761652955366,4.20776151,4111.4,4111.3,0.002]
[1761652956061,4.10826151,4111.4,4111.3,0.002]
[1761652962451,4.10906151,4111.4,4111.3,0.002]
[1761652963779,4.08696151,4111.4,4111.3,0.002]
[1761652965383,8.75347197,4111.4,4111.3,0.002]
[1761652968106,8.34796797,4111.4,4111.3,0.002]
[1761652969350,8.75347197,4111.4,4111.3,0.002]
[1761652975803,8.75447197,4111.4,4111.3,0.002]
[1761652976780,13.01547843,4111.4,4111.3,0.002]
[1761652978717,13.01467843,4111.4,4111.3,0.002]
[1761652979914,8.6542678,4110.9,4110.8,0.002]
[1761652980086,8.7545678,4110.9,4110.8,0.002]
[1761652988824,0.405504,4110.6,4110.4,0.002]
[1761652989028,8.65450452,4110.5,4110.4,0.002]
[1761652989207,8.75480452,4110.5,4110.4,0.002]
[1761652990328,13.01581098,4110.5,4110.4,0.002]
[1761652990693,2.43297163,4110.2,4109.8,0.002]
[1761652990894,7.30515968,4109.9,4109.8,0.002]
[1761652991296,8.96165968,4109.9,4109.8,0.002]
[1761652991721,8.86035968,4109.9,4109.8,0.002]
[1761652992144,8.65485968,4109.9,4109.8,0.002]
[1761652993447,8.65485968,4109.9,4109.8,0.4749]
[1761652993820,8.65485968,4109.9,4109.8,0.002]
[1761652994154,3.98834922,4109.9,4109.8,0.4749]
[1761652995432,8.24935568,4109.9,4109.8,0.4749]
[1761652999393,8.37095568,4109.9,4109.8,0.4749]
[1761652999801,1.216,4110.7,4109.8,0.4749]
[1761652999802,2.43310471,4110.0,4109.8,0.4749]
[1761652999966,2.43314922,4109.9,4109.8,0.4749]
[1761653000166,2.43310924,4110.0,4109.8,0.4749]
[1761653000708,2.43314673,4110.0,4109.8,0.4749]
[1761653000891,2.43302925,4110.2,4109.8,0.4749]
[1761653001096,2.43314922,4109.9,4109.8,0.4749]
[1761653001496,6.69392603,4110.3,4109.8,0.4749]
[1761653001697,2.43312704,4110.0,4109.8,0.4749]
[1761653002021,2.43300829,4110.2,4109.8,0.4749]
[1761653002338,4.26100646,4110.0,4109.8,0.002]
[1761653002481,4.26100646,4110.0,4109.8,0.4749]
[1761653002482,2.43314922,4109.9,4109.8,0.4749]
[1761653002892,2.43314922,4109.9,4109.8,0.002]
[1761653003179,2.43234922,4109.9,4109.8,0.4749]
[1761653003585,2.43234922,4109.9,4109.8,0.002]
[1761653004517,3.98754922,4109.9,4109.8,0.002]
[1761653005520,2.43234922,4109.9,4109.8,0.002]
[1761653005688,3.98754922,4109.9,4109.8,0.002]
[1761653008751,3.98754922,4109.9,4109.8,0.4749]
[1761653009432,3.98754922,4109.9,4109.8,0.002]
[1761653009604,3.98754922,4109.9,4109.8,0.4749]
[1761653009806,2.43234922,4109.9,4109.8,0.4749]
[1761653010704,2.90739147,4111.1,4109.8,0.4749]
[1761653010906,2.43314922,4109.9,4109.8,0.4749]
[1761653011506,2.43310711,4110.0,4109.8,0.4749]
[1761653011754,2.43397163,4110.2,4110.1,0.2211]
[1761653012109,2.43397163,4110.2,4110.1,0.694]
[1761653012313,2.43314922,4109.9,4109.8,0.002]
[1761653012828,0.001,4110.2,4109.8,0.002]
[1761653013028,2.43309002,4110.0,4109.9,0.4729]
[1761653013836,2.43314922,4109.9,4109.8,0.002]
[1761653014446,2.43314922,4109.9,4109.8,0.4464]
[1761653014863,2.43397645,4110.2,4109.8,0.4464]
[1761653015067,2.43313524,4110.0,4109.8,0.4464]
[1761653015237,2.43314922,4109.9,4109.8,0.4464]
[1761653016464,2.43303082,4110.1,4109.8,0.4464]
[1761653017332,0.001,4110.2,4109.8,0.4464]
[1761653017534,0.001,4110.2,4110.1,0.2268]
[1761653017957,0.001,4110.2,4110.1,0.6712]
[1761653018268,2.43397163,4110.2,4110.1,0.6712]
[1761653025345,2.43314922,4109.9,4109.8,0.002]
[1761653025546,2.43314922,4109.9,4109.8,0.4464]
[1761653026375,0.001,4110.2,4109.8,0.4464]
[1761653026540,2.43398978,4110.2,4110.1,0.2268]
[1761653026956,2.43314922,4109.9,4109.8,0.4464]
[1761653027687,2.43234922,4109.9,4109.8,0.4464]
[1761653028703,2.43234922,4109.9,4109.8,0.002]
[1761653028888,2.43234922,4109.9,4109.8,0.1236]
[1761653029262,2.43234922,4109.9,4109.8,0.568]
[1761653031192,2.43234922,4109.9,4109.8,0.1236]
[1761653031568,2.43234922,4109.9,4109.8,0.568]
[1761653033108,2.43313782,4110.0,4109.8,0.568]
[1761653033281,2.43313782,4110.0,4109.9,0.4444]
[1761653036499,2.43309002,4110.0,4109.9,0.4444]
[1761653036808,0.001,4110.1,4109.9,0.4444]
[1761653036993,2.43406953,4110.1,4109.9,0.4444]
[1761653037195,2.43406953,4110.1,4110.0,0.0243309]
[1761653037407,2.43406953,4110.1,4109.9,0.92268]
[1761653037603,2.43406953,4110.1,4110.0,0.4687309]
[1761653037933,2.43406953,4110.1,4110.0,0.4444]
[1761653040818,2.43309002,4110.0,4109.9,4.25828]
[1761653041138,2.43309002,4110.0,4109.9,4.2244]
[1761653046330,0.001,4110.1,4109.9,4.2244]
[1761653046502,2.43403097,4110.1,4110.0,0.4542]
[1761653046822,0.001,4110.1,4110.0,4.2585309]
[1761653047027,0.001,4110.1,4110.0,4.2342]
[1761653047333,0.001,4110.1,4110.0,7.41940289]
[1761653047542,0.001,4110.1,4110.0,4.98631287]
[1761653047687,0.001,4110.1,4110.0,7.41940289]
[1761653049430,0.001,4110.1,4110.0,7.51675574]
[1761653051395,0.001,4110.1,4110.0,7.41940289]
[1761653052229,0.0002,4110.1,4110.0,7.41940289]
[1761653053425,0.0002,4110.1,4110.0,9.38010689]
[1761653055134,0.0002,4110.1,4110.0,9.47744339]
[1761653057515,0.0002,4110.1,4110.0,7.51673939]
[1761653057944,0.0002,4110.1,4110.0,9.07193939]
[1761653058744,0.0002,4110.1,4110.0,7.41940289]
[1761653064631,0.0002,4110.1,4110.0,4.53211287]
[1761653064852,0.0002,4110.1,4110.0,3.78]
[1761653065057,2.43309002,4110.0,4109.9,3.78]
[1761653065358,0.0992,4110.1,4109.9,3.78]
[1761653065741,2.43309002,4110.0,4109.9,3.78]
[1761653066162,2.53209002,4110.0,4109.9,3.78]
[1761653069142,2.43314922,4109.9,4109.8,0.002]
[1761653069347,2.53214922,4109.9,4109.8,0.002]
[1761653070286,2.43314922,4109.9,4109.8,0.002]
[1761653071277,2.53214922,4109.9,4109.8,0.002]
[1761653071482,0.0002,4110.1,4109.8,0.002]
[1761653071860,0.0002,4110.1,4109.9,0.4428]
[1761653072455,0.0002,4110.1,4109.8,0.002]
[1761653074584,2.4332354,4110.1,4109.8,0.002]
[1761653074750,2.43314922,4109.9,4109.8,0.002]
[1761653075186,0.0992,4110.1,4109.8,0.1236]
[1761653075187,2.43309301,4110.0,4109.8,0.1236]
[1761653075670,0.099,4110.0,4109.8,0.1236]
[1761653076081,2.43314922,4109.9,4109.8,0.1236]
[1761653076586,2.43234922,4109.9,4109.8,0.1236]
[1761653080296,2.53134922,4109.9,4109.8,0.002]
[1761653085384,2.43314922,4109.9,4109.8,0.002]
[1761653086593,2.43414922,4109.9,4109.8,0.002]
[1761653089599,0.001,4109.9,4109.8,0.5756]
[1761653090306,2.43414922,4109.9,4109.8,0.1236]
[1761653090500,0.001,4109.9,4109.8,0.1236]
[1761653091514,2.53314922,4109.9,4109.8,0.1236]
[1761653091816,2.53314922,4109.9,4109.8,0.002]
[1761653091817,6.79715298,4109.9,4109.8,0.002]
[1761653092111,2.53314922,4109.9,4109.8,0.002]
[1761653093523,2.66474922,4109.9,4109.8,0.002]
[1761653098248,4.21994922,4109.9,4109.8,0.002]
[1761653101351,4.21914922,4109.9,4109.8,0.002]
[1761653104269,0.0002,4109.9,4109.8,0.454]
[1761653104413,0.0002,4109.9,4109.8,2.88720842]
[1761653104747,0.0002,4109.9,4109.8,3.43142174]
[1761653110222,0.0002,4109.9,4109.8,0.99821332]
[1761653110422,0.0002,4109.9,4109.8,3.43142174]
[1761653112969,0.0002,4109.9,4109.8,0.002]
[1761653112970,2.43334922,4109.9,4109.8,0.002]
[1761653113266,0.0002,4109.9,4109.8,0.002]
[1761653113623,0.0002,4109.9,4109.8,0.5861]
[1761653115826,2.43334922,4109.9,4109.8,0.5861]
[1761653116335,0.0002,4109.9,4109.8,0.5861]
[1761653117060,2.43334922,4109.9,4109.8,0.1236]
[1761653118625,0.0002,4109.9,4109.8,0.1236]
[1761653118840,0.0002,4109.9,4109.8,0.5861]
[1761653119837,2.43334922,4109.9,4109.8,0.1236]
[1761653120156,0.0002,4109.9,4109.8,0.1236]
[1761653120660,0.0002,4109.9,4109.8,0.5861]
[1761653122481,2.43334922,4109.9,4109.8,0.1236]
[1761653123873,2.43334922,4109.9,4109.8,0.5861]
[1761653124410,2.43334922,4109.9,4109.8,0.1236]
[1761653124697,2.43334922,4109.9,4109.8,0.002]
[1761653125692,2.43254922,4109.9,4109.8,0.002]
[1761653126562,2.53254922,4109.9,4109.8,0.002]
[1761653126768,2.53354922,4109.9,4109.8,0.002]
[1761653127854,9.20694231,4109.9,4109.8,0.002]
[1761653128967,9.61244631,4109.9,4109.8,0.002]
[1761653129366,9.70985416,4109.9,4109.8,0.002]
[1761653129768,9.70985416,4109.9,4109.4,0.002]
[1761653129769,2.83889005,4109.5,4109.4,0.002]
[1761653130095,7.95708314,4109.5,4109.4,0.002]
[1761653130263,2.43338605,4109.5,4109.4,0.002]
[1761653130982,2.53338605,4109.5,4109.4,0.002]
[1761653132020,2.43338605,4109.5,4109.4,0.002]
[1761653132208,2.53338605,4109.5,4109.4,0.002]
[1761653134616,2.43338605,4109.5,4109.4,0.002]
[1761653134917,2.53338605,4109.5,4109.4,0.002]
[1761653137794,2.93889005,4109.5,4109.4,0.002]
[1761653138529,2.83889005,4109.5,4109.4,0.002]
[1761653138924,2.93889005,4109.5,4109.4,0.002]
[1761653139927,2.83889005,4109.5,4109.4,0.002]
[1761653140429,2.93889005,4109.5,4109.4,0.002]
[1761653141426,2.43338605,4109.5,4109.4,0.002]
[1761653142194,2.53338605,4109.5,4109.4,0.002]
[1761653143695,2.43338605,4109.5,4109.4,0.002]
[1761653146486,4.49409005,4109.5,4109.4,0.002]
[1761653146944,4.39409005,4109.5,4109.4,0.002]
[1761653147144,3.98858605,4109.5,4109.4,0.002]
[1761653147447,4.08858605,4109.5,4109.4,0.002]
[1761653147846,4.18600078,4109.5,4109.4,0.002]
[1761653149347,4.08600078,4109.5,4109.4,0.002]
[1761653150083,4.08520078,4109.5,4109.4,0.002]
[1761653150474,4.18520078,4109.5,4109.4,0.002]
[1761653151186,4.08520078,4109.5,4109.4,0.002]
[1761653158206,4.08520078,4109.5,4109.4,0.445]
[1761653158207,3.98778605,4109.5,4109.4,0.445]
[1761653158577,3.98778605,4109.5,4109.4,0.002]
[1761653159209,3.98778605,4109.5,4109.4,0.445]
[1761653160708,3.98778605,4109.5,4109.4,0.002]
[1761653163891,3.98878605,4109.5,4109.4,0.002]
[1761653167203,3.98878605,4109.5,4109.4,0.4608]
[1761653167726,3.98878605,4109.5,4109.4,0.002]
[1761653170014,4.08878605,4109.5,4109.4,0.002]
[1761653170892,4.18620078,4109.5,4109.4,0.002]
[1761653171330,4.08878605,4109.5,4109.4,0.002]
[1761653173031,3.98878605,4109.5,4109.4,0.002]
[1761653173332,4.08878605,4109.5,4109.4,0.002]
[1761653174025,3.98878605,4109.5,4109.4,0.002]
[1761653174618,3.98798605,4109.5,4109.4,0.002]
[1761653175416,4.49349005,4109.5,4109.4,0.002]
[1761653176599,4.39426771,4109.2,4109.1,0.01]
[1761653176800,9.5124608,4109.2,4109.1,0.01]
[1761653177016,9.5124608,4109.2,4108.0,0.2218]
[1761653177017,0.405504,4109.0,4108.0,0.2218]
[1761653177197,3.98935607,4108.2,4108.1,0.01]
[1761653178209,3.98935607,4108.2,4108.1,0.6686]
[1761653179852,2.43415607,4108.2,4108.1,0.6686]
[1761653181697,2.43415607,4108.2,4108.1,0.231]
[1761653181902,2.43415607,4108.2,4108.1,0.6686]
[1761653183438,2.43415607,4108.2,4108.1,0.6706]
[1761653186735,1.5552,4108.6,4108.1,0.6706]
[1761653187036,5.11819309,4108.7,4108.1,0.233]
[1761653187037,2.43415607,4108.2,4108.1,0.233]
[1761653187405,2.43415607,4108.2,4108.1,0.6706]
[1761653187813,1.5552,4108.4,4108.1,0.6706]
[1761653188017,1.5552,4108.4,4108.2,0.4376]
[1761653188419,2.43407368,4108.4,4108.2,0.4376]
[1761653188955,2.43368192,4109.1,4108.3,2.5556956]
[1761653189258,2.4336073,4109.2,4108.4,3.19425411]
[1761653189418,2.55514834,4109.3,4108.7,0.1216]
[1761653189755,0.1216,4109.3,4109.2,0.221]
[1761653189958,3.98958876,4109.5,4109.2,0.221]
[1761653190116,3.98958876,4109.5,4109.3,0.4376]
[1761653190525,0.001,4109.5,4109.3,0.4376]
[1761653190834,0.001,4109.5,4109.3,0.5592]
[1761653191037,2.43439064,4109.5,4109.3,0.5592]
[1761653191239,2.43439064,4109.5,4109.4,0.4376]
[1761653191436,0.001,4109.5,4109.4,0.4376]
[1761653192035,0.001,4109.5,4109.4,0.7833117]
[1761653193030,0.001,4109.5,4109.4,0.75897725]
[1761653193364,0.001,4109.5,4109.4,0.4376]
[1761653196165,0.001,4109.5,4109.4,0.4346]
[1761653197531,0.001,4109.5,4109.4,0.5562]
[1761653198030,0.001,4109.5,4109.4,6.79397972]
[1761653198262,0.001,4109.5,4109.4,6.76964527]
[1761653198453,0.001,4109.5,4109.4,7.7218018]
[1761653199158,0.0002,4109.5,4109.4,7.7218018]
[1761653199965,0.0002,4109.5,4109.4,5.28835653]
[1761653200167,0.0002,4109.5,4109.4,4.3362]
[1761653200666,0.0002,4109.5,4109.4,6.79397972]
[1761653200832,0.0002,4109.5,4109.4,6.76964527]
[1761653201033,0.0002,4109.5,4109.4,6.86701068]
[1761653201365,0.0002,4109.5,4109.4,5.04771468]
[1761653201539,0.0002,4109.5,4109.4,6.2446656]
[1761653201945,0.0002,4109.5,4109.4,10.51190019]
[1761653202388,0.0002,4109.5,4109.4,10.39030019]
[1761653206891,0.0002,4109.5,4109.4,14.17030019]
[1761653210028,0.0002,4109.5,4109.4,14.43374129]
[1761653212334,0.0002,4109.5,4109.4,14.55534129]
[1761653212921,0.0002,4109.5,4109.4,18.82257588]
[1761653213299,0.0002,4109.5,4109.4,14.55534129]
[1761653215413,0.0002,4109.5,4109.4,18.82257588]
[1761653217619,0.0002,4110.1,4109.4,18.82257588]
[1761653217620,0.0002,4110.1,4110.0,2.83859402]
[1761653217824,0.0002,4110.1,4110.0,13.3580535]
[1761653218028,0.0002,4110.1,4110.0,13.7683226]
[1761653218228,0.0002,4110.1,4110.0,13.86565768]
[1761653218814,0.001,4111.7,4110.4,8.17035725]
[1761653219016,0.0998,4111.6,4110.4,12.43759184]
[1761653219363,0.0998,4111.6,4110.4,15.35033714]
[1761653219511,0.001,4111.7,4110.4,15.4476708]
[1761653220774,0.1008,4111.7,4110.4,15.4476708]
[1761653221874,0.001,4111.7,4110.4,15.4476708]
[1761653222262,0.001,4111.7,4110.7,2.8381797]
[1761653222468,0.001,4111.0,4110.7,7.10541429]
[1761653222696,0.001,4111.0,4110.7,7.54001429]
[1761653222912,1e-08,4110.8,4110.7,16.66731612]
[1761653223074,1e-08,4110.8,4110.7,16.40387502]
[1761653223475,0.00020001,4111.0,4110.9,2.83806134]
[1761653223708,0.00020001,4111.0,4110.9,4.39326134]
[1761653224012,0.00020001,4111.0,4110.9,4.82786134]
[1761653224309,0.00020001,4111.0,4110.9,6.86702458]
[1761653225100,0.00020001,4111.0,4110.9,6.96434001]
[1761653227618,0.00020001,4111.0,4110.9,10.74114001]
[1761653231331,0.00020001,4111.0,4110.9,10.64382458]
[1761653232026,0.00020001,4111.0,4110.9,10.20922458]
[1761653232211,0.00020001,4111.0,4110.9,14.59805917]
[1761653232419,0.09920001,4111.0,4110.9,7.88615734]
[1761653232730,0.09920001,4111.0,4110.9,6.33095734]
[1761653233110,0.00020001,4111.0,4110.9,6.33095734]
[1761653233508,0.09920001,4111.0,4110.9,6.33095734]
[1761653236315,0.00020001,4111.0,4110.9,6.33095734]
[1761653236536,0.00020001,4111.0,4110.9,7.63403974]
[1761653239429,0.00020001,4111.0,4110.9,9.91604374]
[1761653239734,0.00020001,4111.0,4110.9,10.03764374]
[1761653240838,0.00020001,4111.0,4110.9,9.59474374]
[1761653241655,0.00020001,4111.0,4110.9,10.03764374]
[1761653242526,0.00020001,4111.0,4110.9,9.59474374]
[1761653242903,0.00020001,4111.0,4110.9,10.03764374]
[1761653245737,0.00020001,4111.0,4110.9,9.59474374]
[1761653247440,0.00020001,4111.0,4110.9,13.86197833]
[1761653248143,0.0002,4111.1,4111.0,8.16980216]
[1761653248341,0.0002,4111.1,4111.0,10.52634746]
[1761653249615,0.1,4111.1,4111.0,10.12084346]
[1761653251323,0.0002,4111.1,4111.0,10.12084346]
[1761653251835,0.1,4111.1,4111.0,10.12084346]
[1761653252627,0.0002,4111.1,4111.0,10.12084346]
[1761653253923,0.001,4111.3,4111.2,8.16948383]
[1761653254255,0.001,4111.3,4111.2,10.52602913]
[1761653254452,0.001,4111.3,4111.2,10.98472913]
[1761653257942,0.001,4111.3,4111.2,2.3565453]
[1761653258133,0.1022,4111.3,4110.8,0.002]
[1761653258466,0.1022,4111.3,4111.0,1.5552]
[1761653258636,0.1022,4111.3,4110.8,0.002]
[1761653258830,0.1022,4111.3,4111.2,2.43237984]
[1761653260436,0.1022,4111.3,4110.8,2.43459815]
[1761653260637,0.1022,4111.3,4111.0,2.43249817]
[1761653260851,0.1022,4111.3,4111.1,2.43238846]
[1761653261053,0.1022,4111.3,4111.0,2.43249817]
[1761653261054,0.1022,4111.3,4111.2,2.43237984]
[1761653261875,0.1022,4111.3,4111.1,2.43242615]
[1761653262677,0.1022,4111.3,4111.2,2.43237984]
[1761653264679,0.1022,4111.3,4111.1,2.43242288]
[1761653265058,0.1022,4111.3,4111.2,2.43237984]
[1761653266376,0.1022,4111.3,4110.9,1.5552]
[1761653266675,0.1022,4111.3,4110.9,2.43250737]
[1761653267384,0.1022,4111.3,4110.8,0.002]
[1761653267590,0.1996,4110.9,4110.8,0.002]
[1761653267959,0.3018,4110.9,4110.8,0.1236]
[1761653269082,2.73435734,4110.9,4110.8,0.1236]
[1761653272289,0.3018,4110.9,4110.8,0.1236]
[1761653272497,0.1988,4110.9,4110.8,0.1236]
[1761653272662,0.1032,4111.3,4110.8,0.1236]
[1761653272856,0.1032,4111.3,4111.1,0.1216]
[1761653273692,2.53553874,4111.3,4111.1,0.1216]
[1761653273896,2.43237984,4111.2,4111.1,0.1216]
[1761653274077,2.53557984,4111.2,4111.1,0.1216]
[1761653281219,2.53557984,4111.2,4110.8,0.002]
[1761653281518,9.29496226,4110.9,4110.8,0.002]
[1761653281987,9.4972426,4110.9,4110.8,0.002]
[1761653282503,9.9027466,4110.9,4110.8,0.002]
[1761653282882,2.43303082,4110.1,4110.0,0.002]
[1761653283218,7.54413574,4110.1,4110.0,0.002]
[1761653283401,9.20423574,4110.1,4110.0,0.002]
[1761653291023,9.60973974,4110.1,4110.0,0.002]
[1761653294528,2.43344527,4109.4,4108.9,0.002]
[1761653294737,9.50549108,4109.0,4108.9,0.002]
[1761653295111,9.60449108,4109.0,4108.9,0.002]
[1761653297120,9.19898708,4109.0,4108.9,0.002]
[1761653303043,1.621504,4109.5,4108.9,0.002]
[1761653303044,0.1,4111.3,4108.9,0.4384]
[1761653303207,2.4325471,4111.0,4109.0,2.13448731]
[1761653303407,2.43304735,4110.1,4109.0,2.80532816]
[1761653303647,1.5552,4110.6,4109.1,0.6574]
[1761653303814,2.43312083,4110.0,4109.1,0.6574]
[1761653304015,2.43315063,4109.9,4109.2,0.4364]
[1761653304339,2.43321097,4109.8,4109.2,0.4364]
[1761653304542,2.43321097,4109.8,4109.7,0.1216]
[1761653309644,0.001,4109.9,4109.1,0.221]
[1761653309820,2.43345775,4109.4,4109.2,0.1216]
[1761653310349,2.43345775,4109.4,4109.3,0.4364]
[1761653310856,2.55575841,4109.9,4109.3,0.4364]
[1761653311055,2.43333176,4109.6,4109.3,0.4364]
[1761653313552,2.43332684,4109.6,4109.3,0.4364]
[1761653313732,0.1226,4109.9,4109.3,0.4364]
[1761653313935,2.43339586,4109.5,4109.3,0.4364]
[1761653315448,2.43341462,4109.5,4109.3,0.4364]
[1761653317777,0.1226,4109.9,4109.3,0.4364]
[1761653317974,2.43334288,4109.6,4109.3,0.4364]
[1761653318274,2.43320842,4109.8,4109.2,0.1216]
[1761653318275,2.43339004,4109.5,4109.2,0.1216]
[1761653318575,2.43339004,4109.5,4109.2,0.5905]
[1761653319473,2.43339004,4109.5,4109.2,0.1216]
[1761653319676,2.43339004,4109.5,4109.3,0.4689]
[1761653320880,2.43333805,4109.6,4109.3,0.4689]
[1761653321450,2.43253805,4109.6,4109.3,0.4689]
[1761653321663,2.43342098,4109.5,4109.3,0.4689]
[1761653321954,4.26460035,4109.8,4109.2,0.1216]
[1761653322280,2.43343884,4109.5,4109.2,0.1216]
[1761653322642,2.43343884,4109.5,4109.2,0.5905]
[1761653323080,4.26460035,4109.8,4109.2,0.5905]
[1761653323239,2.43331976,4109.7,4109.3,0.4689]
[1761653323575,2.43334426,4109.6,4109.3,0.4689]
[1761653324775,2.43324578,4109.8,4109.3,0.4689]
[1761653324974,2.72628211,4109.9,4109.3,0.4689]
[1761653325278,0.001,4109.9,4109.4,0.02433445]
[1761653325501,0.001,4109.9,4109.5,0.5905]
[1761653325982,2.43416178,4109.9,4109.6,0.4689]
[1761653326180,0.001,4109.9,4109.6,0.4689]
[1761653327185,2.43417625,4109.9,4109.6,0.4689]
[1761653328363,0.001,4109.9,4109.6,0.4689]
[1761653328560,2.43332684,4109.6,4109.5,0.1216]
[1761653328769,2.43332006,4109.7,4109.5,0.1216]
[1761653329285,2.43332684,4109.6,4109.5,0.1216]
[1761653329480,2.43328408,4109.7,4109.5,0.1216]
[1761653331376,2.43321444,4109.8,4109.5,0.1216]
[1761653331572,2.43327075,4109.7,4109.5,0.1216]
[1761653332369,2.43332684,4109.6,4109.5,0.1216]
[1761653332589,2.43332684,4109.6,4109.2,3.77639999]
[1761653332590,2.43347585,4109.4,4109.2,3.77639999]
[1761653332887,2.43332684,4109.6,4109.2,3.77639999]
[1761653332888,2.43350448,4109.3,4109.2,3.77639999]
[1761653333089,2.43362293,4109.1,4109.0,0.002]
[1761653335873,2.43360568,4109.2,4109.0,0.002]
[1761653336268,2.43362293,4109.1,4109.0,0.002]
[1761653337462,2.43357771,4109.2,4109.0,0.002]
[1761653337889,2.43362293,4109.1,4109.0,0.4709]
[1761653338295,2.43362293,4109.1,4109.0,0.002]
[1761653339584,6.69822328,4109.1,4109.0,0.002]
[1761653339769,6.79722328,4109.1,4109.0,0.002]
[1761653340903,2.43362293,4109.1,4109.0,0.002]
[1761653342008,0.001,4109.9,4109.0,0.4709]
[1761653342173,2.43330844,4109.7,4109.1,0.2239]
[1761653342583,2.43332982,4109.6,4109.2,0.4689]
[1761653343896,2.43328801,4109.7,4109.2,0.4689]
[1761653344381,2.43415027,4109.9,4109.2,0.4689]
[1761653344382,0.001,4109.9,4109.2,0.4689]
[1761653344586,2.43322128,4109.8,4109.2,0.4689]
[1761653344906,2.43322128,4109.8,4109.3,0.36023243]
[1761653345476,2.43330982,4109.7,4109.4,0.4691]
[1761653346177,2.43250982,4109.7,4109.4,0.4691]
[1761653347590,2.43333005,4109.6,4109.4,0.4691]
[1761653348009,2.43338605,4109.5,4109.4,0.4691]
[1761653348601,2.43338605,4109.5,4109.1,0.6639]
[1761653348802,2.43338605,4109.5,4109.0,0.002]
[1761653348982,2.43338605,4109.5,4109.1,0.6546]
[1761653349312,2.43356064,4109.3,4109.1,0.2146]
[1761653349610,2.43356064,4109.3,4109.0,0.442]
[1761653350579,4.26460035,4109.7,4109.0,0.002]
[1761653350580,2.43359698,4109.2,4109.0,0.002]
[1761653350902,2.43351676,4109.3,4109.0,0.002]
[1761653351287,2.43361485,4109.2,4109.0,0.002]
[1761653351497,4.26460035,4109.7,4109.0,0.002]
[1761653351698,2.43345843,4109.4,4109.1,0.2146]
[1761653351896,2.43352654,4109.3,4109.1,0.3362]
[1761653352188,2.43343753,4109.5,4109.1,0.3362]
[1761653352391,0.1216,4109.8,4109.2,0.02433563]
[1761653352589,0.001,4109.9,4109.3,0.5616]
[1761653352819,2.43333576,4109.6,4109.3,0.5616]
[1761653353018,2.43333576,4109.6,4109.4,0.44]
[1761653354290,2.43328464,4109.7,4109.4,0.44]
[1761653354490,2.43334141,4109.6,4109.4,0.44]
[1761653355698,2.43327437,4109.7,4109.4,0.44]
[1761653356198,2.4333321,4109.6,4109.4,0.44]
[1761653356406,3.9893623,4109.9,4109.4,0.44]
[1761653356626,2.43328548,4109.7,4109.4,0.44]
[1761653356928,2.43322831,4109.8,4109.4,0.44]
[1761653357495,2.43327037,4109.7,4109.4,0.44]
[1761653359123,2.43333218,4109.6,4109.4,0.44]
[1761653359525,2.43333218,4109.6,4109.4,4.21639999]
[1761653360023,0.001,4109.9,4109.5,0.44]
[1761653360190,2.4341857,4109.9,4109.5,0.44]
[1761653360391,2.43324162,4109.8,4109.5,0.44]
[1761653361424,0.001,4109.9,4109.5,1.14148967]
[1761653361594,0.001,4109.9,4109.7,0.1216]
[1761653362019,0.001,4109.9,4109.8,0.44]
[1761653365797,0.001,4109.9,4109.8,0.46433208]
[1761653366021,0.001,4109.9,4109.8,2.8975405]
[1761653366330,0.001,4109.9,4109.8,1.43060626]
[1761653369219,0.001,4109.9,4109.8,0.99060626]
[1761653369425,0.001,4109.9,4109.7,0.1216]
[1761653370541,0.0002,4109.9,4109.7,0.1216]
[1761653371140,0.0002,4109.9,4109.8,3.77639999]
[1761653377238,0.0002,4109.9,4109.8,6.64760841]
[1761653377438,0.0002,4109.9,4109.8,4.21439999]
[1761653378438,0.0002,4109.9,4109.8,3.77639999]
[1761653380540,0.0002,4109.9,4109.8,3.77839999]
[1761653381545,2.43334922,4109.9,4109.8,3.77839999]
[1761653382964,2.43334922,4109.9,4109.8,0.002]
[1761653383265,0.0002,4109.9,4109.8,0.002]